[Event "23rd Alekhine Master 2019"]
[Site "Voronezh"]
[Date "2019.06.14"]
[Round "3.10"]
[White "Korchmar, Vasiliy"]
[Black "Goganov, Aleksey"]
[Result "*"]
[ECO "B27"]
[WhiteElo "2419"]
[BlackElo "2559"]
[Annotator "ChessBase"]
[PlyCount "96"]
[EventDate "2019.06.12"]
[EventType "swiss"]
[EventCountry "RUS"]
[SourceTitle "playchess.com"]
[Source "ChessBase"]
[SourceQuality "1"]
[TimeControl "40/5400+30:1800+30"]

1. e4 {[%emt 0:06:39]} c5 {[%emt 0:00:00]} 2. Nf3 {[%emt 0:00:06]} g6 {[%emt 0:00:01]} 3. d4 {[%emt 0:01:17]} cxd4 {[%emt 0:00:17]} 4. Nxd4 {[%emt 0:01:47]} Nf6 {[%emt 0:02:00]} 5. Nc3 {[%emt 0:00:12]} Bg7 {[%emt 0:04:05]} 6. e5 {[%emt 0:03:39]} Ng8 {[%emt 0:00:08]} 7. f4 {[%emt 0:02:18]} Nh6 {[%emt 0:01:21]} 8. Bc4 {[%emt 0:07:41]} Nc6 {[%emt 0:02:27]} 9. Be3 {[%emt 0:06:46]} O-O {[%emt 0:01:11]} 10. Nxc6 {[%emt 0:12:12]} bxc6 {[%emt 0:02:02]} 11. Qd2 {[%emt 0:04:52]} d5 {[%emt 0:05:55]} 12. O-O-O {[%emt 0:04:00]} Qa5 {[%emt 0:08:19]} 13. Be2 {[%emt 0:07:26]} f6 {[%emt 0:21:49]} 14. h4 {[%emt 0:06:14]} Nf5 {[%emt 0:02:11]} 15. g4 {[%emt 0:03:51]} Nxe3 16. Qxe3 {[%emt 0:00:05]} fxe5 {[%emt 0:06:32]} 17. fxe5 {[%emt 0:01:13]} Qb6 {[%emt 0:06:26]} 18. Qg5 {[%emt 0:13:05]} Rb8 {[%emt 0:01:00]} 19. Qxe7 {[%emt 0:00:23]} Qxb2+ {[%emt 0:03:09]} 20. Kd2 {[%emt 0:00:05]} Qb4 {[%emt 0:05:20]} 21. Qxb4 {[%emt 0:02:22]} Rxb4 {[%emt 0:00:03]} 22. Rb1 {[%emt 0:04:59]} Rxb1 {[%emt 0:00:41]} 23. Rxb1 {[%emt 0:00:35]} Bxe5 {[%emt 0:00:22]} 24. Na4 {[%emt 0:01:17]} Rf4 {[%emt 0:04:24]} 25. Nc5 {[%emt 0:00:48]} Bd6 {[%emt 0:00:58]} 26. Nd3 {[%emt 0:02:44]} Ra4 {[%emt 0:00:40]} 27. Rf1 {[%emt 0:00:30]} Kg7 {[%emt 0:03:49]} 28. g5 {[%emt 0:00:44]} Rxh4 {[%emt 0:03:04]} 29. Rf6 {[%emt 0:00:29]} Be7 {[%emt 0:01:07]} 30. Rxc6 {[%emt 0:00:21]} Bxg5+ {[%emt 0:01:57]} 31. Kc3 {[%emt 0:01:41]} Rc4+ {[%emt 0:04:23]} 32. Rxc4 {[%emt 0:00:06]} dxc4 {[%emt 0:00:17]} 33. Kxc4 {[%emt 0:00:57]} Be6+ {[%emt 0:00:24]} 34. Kb5 {[%emt 0:00:08]} Bxa2 {[%emt 0:00:53]} 35. Nb4 {[%emt 0:00:52]} Be6 {[%emt 0:01:08]} 36. c4 {[%emt 0:00:36]} Bd2 {[%emt 0:03:48]} 37. Nc2 {[%emt 0:02:45]} a5 {[%emt 0:01:17]} 38. c5 {[%emt 0:00:44]} h5 {[%emt 0:01:38]} 39. c6 {[%emt 0:00:29]} h4 {[%emt 0:00:19]} 40. c7 {[%emt 0:01:39]} Bd7+ {[%emt 0:01:08]} 41. Kc5 {[%emt 0:30:44]} h3 {[%emt 0:31:29]} 42. Kd6 {[%emt 0:00:44]} Bc8 {[%emt 0:00:09]} 43. Bf3 {[%emt 0:00:47]} a4 {[%emt 0:01:17]} 44. Nd4 {[%emt 0:00:21]} Bb4+ {[%emt 0:00:49]} 45. Kc6 {[%emt 0:00:16]} a3 {[%emt 0:00:37]} 46. Bd5 {[%emt 0:00:12]} h2 {[%emt 0:00:49]} 47. Kb5 {[%emt 0:00:30]} Bd6 {[%emt 0:00:34]} 48. Kc6 {[%emt 0:00:12]} Be5 {[%emt 0:00:23]} *

[Event "23rd Alekhine Master 2019"]
[Site "Voronezh"]
[Date "2019.06.14"]
[Round "3.13"]
[White "Tologontegin, Semetey"]
[Black "Utegaliyev, Azamat"]
[Result "0-1"]
[ECO "A36"]
[WhiteElo "2386"]
[BlackElo "2495"]
[Annotator "ChessBase"]
[PlyCount "88"]
[EventDate "2019.06.12"]
[EventType "swiss"]
[EventCountry "RUS"]
[SourceTitle "playchess.com"]
[Source "ChessBase"]
[SourceQuality "1"]
[TimeControl "40/5400+30:1800+30"]

1. c4 {[%emt 0:00:33]} c5 {[%emt 0:01:32]} 2. g3 {[%emt 0:00:17]} g6 {[%emt 0:00:46]} 3. Bg2 {[%emt 0:00:13]} Bg7 {[%emt 0:00:04]} 4. Nc3 {[%emt 0:00:22]} Nc6 {[%emt 0:00:57]} 5. b3 {[%emt 0:00:31]} Nf6 {[%emt 0:20:58]} 6. Bb2 {[%emt 0:05:23]} O-O {[%emt 0:00:13]} 7. e4 {[%emt 0:10:59]} b6 {[%emt 0:10:09]} 8. Nge2 {[%emt 0:00:27]} Bb7 {[%emt 0:00:06]} 9. O-O {[%emt 0:00:36]} e6 {[%emt 0:07:52]} 10. f4 {[%emt 0:07:05]} d6 {[%emt 0:00:48]} 11. h3 {[%emt 0:07:06]} a6 {[%emt 0:01:23]} 12. d3 {[%emt 0:03:23]} Nd7 {[%emt 0:05:17]} 13. Qd2 {[%emt 0:05:16]} Nd4 {[%emt 0:00:25]} 14. Kh2 {[%emt 0:01:30]} b5 {[%emt 0:05:33]} 15. Nxd4 {[%emt 0:01:27]} cxd4 {[%emt 0:00:15]} 16. Ne2 {[%emt 0:00:11]} e5 {[%emt 0:00:48]} 17. Ba3 {[%emt 0:06:08]} bxc4 {[%emt 0:00:28]} 18. bxc4 {[%emt 0:04:03]} Nc5 {[%emt 0:00:16]} 19. Rab1 {[%emt 0:04:38]} Bc6 {[%emt 0:04:34]} 20. fxe5 {[%emt 0:10:24]} Bxe5 {[%emt 0:00:05]} 21. Bb2 {[%emt 0:00:09]} Ne6 {[%emt 0:00:31]} 22. Kg1 {[%emt 0:04:36]} Qe7 {[%emt 0:08:18]} 23. h4 {[%emt 0:00:39]} f5 {[%emt 0:00:06]} 24. exf5 {[%emt 0:01:00]} Bxg2 25. Kxg2 {[%emt 0:04:09]} gxf5 {[%emt 0:00:36]} 26. Rf3 {[%emt 0:06:25]} Qg7 {[%emt 0:01:19]} 27. Rbf1 {[%emt 0:00:29]} Qg4 {[%emt 0:02:04]} 28. Bc1 {[%emt 0:01:04]} Rae8 {[%emt 0:08:33]} 29. Qd1 {[%emt 0:01:18]} f4 {[%emt 0:02:10]} 30. R1f2 {[%emt 0:08:20]} h5 {[%emt 0:04:21]} 31. Qh1 {[%emt 0:01:59]} fxg3 {[%emt 0:06:11]} 32. Nxg3 {[%emt 0:00:05]} Rxf3 {[%emt 0:07:48]} 33. Rxf3 {[%emt 0:00:05]} Rf8 {[%emt 0:00:28]} 34. Rxf8+ {[%emt 0:02:14]} Kxf8 {[%emt 0:00:05]} 35. Qh3 {[%emt 0:00:27]} Nc5 {[%emt 0:00:17]} 36. Qxg4 {[%emt 0:01:40]} hxg4 {[%emt 0:00:01]} 37. Ba3 {[%emt 0:00:29]} Nxd3 {[%emt 0:00:11]} 38. Nf5 {[%emt 0:00:13]} Nc5 {[%emt 0:00:50]} 39. Nh6 {[%emt 0:01:45]} g3 {[%emt 0:00:39]} 40. Ng4 {[%emt 0:00:00]} Bf4 {[%emt 0:00:00]} 41. Kf3 {[%emt 0:07:29]} d3 {[%emt 0:01:31]} 42. Bb2 {[%emt 0:00:03]} d2 {[%emt 0:00:43]} 43. Ke2 {[%emt 0:00:03]} g2 {[%emt 0:00:30]} 44. Bd4 {[%emt 0:00:04]} Ne4 {[%emt 0:00:04]} 0-1

[Event "23rd Alekhine Master 2019"]
[Site "Voronezh"]
[Date "2019.06.14"]
[Round "3.14"]
[White "Belyakov, Bogdan"]
[Black "Skatchkov, Valery"]
[Result "1-0"]
[ECO "E46"]
[WhiteElo "2483"]
[BlackElo "2318"]
[Annotator "ChessBase"]
[PlyCount "48"]
[EventDate "2019.06.12"]
[EventType "swiss"]
[EventCountry "RUS"]
[SourceTitle "playchess.com"]
[Source "ChessBase"]
[SourceQuality "1"]
[TimeControl "40/5400+30:1800+30"]

1. d4 {[%emt 0:00:00]} Nf6 {[%emt 0:00:00]} 2. c4 {[%emt 0:00:00]} e6 {[%emt 0:00:00]} 3. Nc3 {[%emt 0:00:00]} Bb4 {[%emt 0:00:10]} 4. e3 {[%emt 0:00:30]} O-O {[%emt 0:00:28]} 5. Nge2 {[%emt 0:02:17]} Re8 {[%emt 0:00:05]} 6. a3 {[%emt 0:00:24]} Bf8 {[%emt 0:00:05]} 7. Ng3 {[%emt 0:05:55]} d5 {[%emt 0:00:56]} 8. Be2 {[%emt 0:01:07]} b6 {[%emt 0:00:08]} 9. cxd5 {[%emt 0:05:10]} exd5 {[%emt 0:00:30]} 10. O-O {[%emt 0:00:30]} Bb7 {[%emt 0:00:30]} 11. b4 {[%emt 0:00:30]} a6 {[%emt 0:00:30]} 12. Qb3 {[%emt 0:00:30]} Nbd7 {[%emt 0:00:30]} 13. Bf3 {[%emt 0:00:30]} c6 {[%emt 0:00:30]} 14. e4 {[%emt 0:00:30]} dxe4 {[%emt 0:00:30]} 15. Ngxe4 {[%emt 0:00:30]} h6 {[%emt 0:39:29]} 16. Be3 {[%emt 0:11:19]} Nd5 {[%emt 0:04:56]} 17. Rfc1 {[%emt 0:01:29]} Be7 {[%emt 0:17:31]} 18. Ra2 {[%emt 0:10:15]} N7f6 {[%emt 0:16:13]} 19. Nxf6+ {[%emt 0:10:05]} Nxf6 {[%emt 0:01:02]} 20. Rac2 {[%emt 0:03:24]} Bd6 {[%emt 0:00:22]} 21. g3 {[%emt 0:03:07]} Rb8 {[%emt 0:01:11]} 22. Qa2 {[%emt 0:09:22]} Re7 {[%emt 0:02:03]} 23. Qb1 {[%emt 0:04:42]} c5 {[%emt 0:07:25]} 24. Bxb7 {[%emt 0:00:33]} Rexb7 {[%emt 0:00:02]} 1-0

[Event "23rd Alekhine Master 2019"]
[Site "Voronezh"]
[Date "2019.06.15"]
[Round "4.1"]
[White "Svetushkin, Dmitry"]
[Black "Pavlov, Sergey"]
[Result "0-1"]
[ECO "B31"]
[WhiteElo "2532"]
[BlackElo "2473"]
[Annotator "ChessBase"]
[PlyCount "70"]
[EventDate "2019.06.12"]
[EventType "swiss"]
[EventCountry "RUS"]
[SourceTitle "playchess.com"]
[Source "ChessBase"]
[SourceQuality "1"]
[TimeControl "40/5400+30:1800+30"]

1. e4 {[%emt 0:03:11]} c5 {[%emt 0:00:05]} 2. Nf3 {[%emt 0:00:05]} Nc6 {[%emt 0:00:14]} 3. Bb5 {[%emt 0:00:09]} g6 {[%emt 0:00:45]} 4. c3 {[%emt 0:00:12]} Nf6 {[%emt 0:01:55]} 5. Qe2 {[%emt 0:00:09]} Bg7 {[%emt 0:00:37]} 6. d4 {[%emt 0:00:35]} cxd4 {[%emt 0:04:50]} 7. cxd4 {[%emt 0:00:07]} d5 {[%emt 0:00:52]} 8. e5 {[%emt 0:00:13]} Ne4 {[%emt 0:00:21]} 9. O-O {[%emt 0:00:10]} O-O {[%emt 0:00:31]} 10. Rd1 {[%emt 0:00:08]} f6 {[%emt 0:02:12]} 11. Nc3 {[%emt 0:00:16]} Nxc3 {[%emt 0:01:50]} 12. bxc3 {[%emt 0:00:10]} Bg4 {[%emt 0:04:41]} 13. Bxc6 {[%emt 0:01:48]} bxc6 {[%emt 0:01:08]} 14. e6 {[%emt 0:00:05]} Qd6 {[%emt 0:01:48]} 15. Re1 {[%emt 0:01:29]} f5 {[%emt 0:01:06]} 16. h3 {[%emt 0:01:01]} Bxf3 {[%emt 0:00:40]} 17. Qxf3 {[%emt 0:00:48]} f4 {[%emt 0:00:20]} 18. a4 {[%emt 0:06:53]} Rab8 {[%emt 0:05:31]} 19. Ba3 {[%emt 0:01:35]} Qc7 {[%emt 0:00:11]} 20. Bc5 {[%emt 0:04:49]} Rf6 {[%emt 0:24:54]} 21. a5 {[%emt 0:01:59]} a6 {[%emt 0:00:31]} 22. Rab1 {[%emt 0:07:58]} Rxb1 {[%emt 0:06:51]} 23. Rxb1 {[%emt 0:01:34]} Rxe6 {[%emt 0:00:18]} 24. Rb6 {[%emt 0:00:35]} Re1+ {[%emt 0:14:05]} 25. Kh2 {[%emt 0:02:13]} Bf6 {[%emt 0:00:41]} 26. Rxa6 {[%emt 0:14:07]} Bh4 {[%emt 0:00:41]} 27. Ra8+ {[%emt 0:01:14]} Kg7 {[%emt 0:01:43]} 28. Ra7 {[%emt 0:04:49]} Qb8 {[%emt 0:02:44]} 29. Bb6 {[%emt 0:08:21]} Rf1 {[%emt 0:14:13]} 30. Qd3 {[%emt 0:26:43]} f3+ {[%emt 0:03:24]} 31. Rc7 {[%emt 0:00:12]} fxg2 {[%emt 0:03:14]} 32. Kxg2 {[%emt 0:00:48]} Rxf2+ {[%emt 0:00:05]} 33. Kg1 {[%emt 0:00:15]} Qf8 {[%emt 0:00:53]} 34. Qe3 {[%emt 0:05:19]} Rf1+ {[%emt 0:00:15]} 35. Kg2 {[%emt 0:00:04]} Re1 {[%emt 0:00:54]} 0-1

[Event "23rd Alekhine Master 2019"]
[Site "Voronezh"]
[Date "2019.06.15"]
[Round "4.3"]
[White "Utegaliyev, Azamat"]
[Black "Tsydypov, Zhamsaran"]
[Result "1-0"]
[ECO "A14"]
[WhiteElo "2495"]
[BlackElo "2573"]
[Annotator "ChessBase"]
[PlyCount "66"]
[EventDate "2019.06.12"]
[EventType "swiss"]
[EventCountry "RUS"]
[SourceTitle "playchess.com"]
[Source "ChessBase"]
[SourceQuality "1"]
[TimeControl "40/5400+30:1800+30"]

1. c4 {[%emt 0:04:46]} e6 {[%emt 0:00:25]} 2. g3 {[%emt 0:00:56]} d5 {[%emt 0:01:00]} 3. Bg2 {[%emt 0:00:14]} Nf6 {[%emt 0:06:06]} 4. Nf3 {[%emt 0:00:39]} Be7 {[%emt 0:00:05]} 5. O-O {[%emt 0:00:13]} O-O {[%emt 0:00:04]} 6. b3 {[%emt 0:01:04]} b6 {[%emt 0:01:00]} 7. Bb2 {[%emt 0:04:18]} Bb7 {[%emt 0:00:07]} 8. cxd5 {[%emt 0:03:42]} exd5 {[%emt 0:04:02]} 9. d3 {[%emt 0:04:10]} Re8 {[%emt 0:05:31]} 10. Nbd2 {[%emt 0:00:33]} c5 {[%emt 0:01:21]} 11. e3 {[%emt 0:00:14]} Nc6 {[%emt 0:01:14]} 12. a3 Ba6 {[%emt 0:02:46]} 13. Qc2 {[%emt 0:05:41]} Rc8 {[%emt 0:14:29]} 14. Rfe1 {[%emt 0:02:17]} d4 15. e4 {[%emt 0:02:52]} Nd7 {[%emt 0:02:47]} 16. Rad1 {[%emt 0:05:06]} g5 {[%emt 0:08:08]} 17. h3 {[%emt 0:03:18]} h5 {[%emt 0:01:02]} 18. Nh2 {[%emt 0:00:50]} Nde5 {[%emt 0:02:05]} 19. Nc4 {[%emt 0:02:42]} g4 {[%emt 0:04:55]} 20. Nxe5 {[%emt 0:12:17]} Nxe5 {[%emt 0:00:06]} 21. hxg4 {[%emt 0:00:04]} hxg4 {[%emt 0:00:16]} 22. Qe2 {[%emt 0:00:04]} Qd7 {[%emt 0:03:21]} 23. Bc1 {[%emt 0:04:14]} Bd6 {[%emt 0:02:10]} 24. Bf4 {[%emt 0:01:32]} f5 {[%emt 0:00:37]} 25. Qc2 {[%emt 0:04:17]} Kg7 {[%emt 0:04:03]} 26. exf5 {[%emt 0:03:57]} Nf3+ {[%emt 0:17:59]} 27. Bxf3 {[%emt 0:04:18]} gxf3 {[%emt 0:00:06]} 28. Qd2 {[%emt 0:01:20]} Re2 {[%emt 0:02:01]} 29. Rxe2 {[%emt 0:01:10]} Bxf4 {[%emt 0:00:14]} 30. f6+ {[%emt 0:09:23]} Kg8 {[%emt 0:05:17]} 31. Qxf4 {[%emt 0:00:35]} fxe2 {[%emt 0:00:05]} 32. Re1 {[%emt 0:00:06]} Bxd3 {[%emt 0:00:17]} 33. Ng4 Kh8 1-0

[Event "23rd Alekhine Master 2019"]
[Site "Voronezh"]
[Date "2019.06.15"]
[Round "4.4"]
[White "Rozum, Ivan"]
[Black "Belyakov, Bogdan"]
[Result "1/2-1/2"]
[ECO "E63"]
[WhiteElo "2572"]
[BlackElo "2483"]
[Annotator "ChessBase"]
[PlyCount "123"]
[EventDate "2019.06.12"]
[EventType "swiss"]
[EventCountry "RUS"]
[SourceTitle "playchess.com"]
[Source "ChessBase"]
[SourceQuality "1"]
[TimeControl "40/5400+30:1800+30"]

1. c4 {[%emt 0:01:03]} g6 {[%emt 0:00:59]} 2. Nf3 {[%emt 0:00:35]} Bg7 {[%emt 0:00:11]} 3. d4 {[%emt 0:00:06]} Nf6 {[%emt 0:00:13]} 4. g3 {[%emt 0:00:06]} O-O {[%emt 0:00:13]} 5. Bg2 {[%emt 0:00:04]} d6 {[%emt 0:00:15]} 6. Nc3 {[%emt 0:00:23]} Nc6 {[%emt 0:00:32]} 7. O-O {[%emt 0:00:08]} a6 {[%emt 0:00:07]} 8. b3 {[%emt 0:00:29]} Rb8 {[%emt 0:00:10]} 9. d5 {[%emt 0:00:17]} Na5 {[%emt 0:00:11]} 10. Bg5 {[%emt 0:00:15]} h6 {[%emt 0:02:31]} 11. Bd2 {[%emt 0:07:22]} c5 {[%emt 0:00:10]} 12. dxc6 {[%emt 0:00:26]} Nxc6 {[%emt 0:00:06]} 13. Ne1 {[%emt 0:04:46]} Ne5 {[%emt 0:02:11]} 14. a4 {[%emt 0:10:01]} a5 {[%emt 0:27:24]} 15. Nc2 {[%emt 0:03:23]} Nfd7 {[%emt 0:00:48]} 16. Na3 {[%emt 0:13:25]} Nc5 {[%emt 0:03:23]} 17. Nab5 {[%emt 0:00:08]} Bd7 {[%emt 0:10:08]} 18. h3 {[%emt 0:02:02]} Bc6 {[%emt 0:00:14]} 19. Rb1 {[%emt 0:02:50]} Bxg2 {[%emt 0:02:03]} 20. Kxg2 {[%emt 0:00:02]} b6 {[%emt 0:17:23]} 21. Be3 {[%emt 0:04:11]} Nc6 {[%emt 0:01:14]} 22. Nd5 {[%emt 0:01:43]} Qc8 {[%emt 0:02:05]} 23. Na7 {[%emt 0:05:45]} Qb7 {[%emt 0:01:04]} 24. Nxc6 {[%emt 0:00:03]} Qxc6 {[%emt 0:00:10]} 25. Kh2 {[%emt 0:01:26]} Rfe8 {[%emt 0:02:09]} 26. Bd4 {[%emt 0:00:20]} Ne6 {[%emt 0:04:45]} 27. Bxg7 {[%emt 0:00:33]} Kxg7 {[%emt 0:00:07]} 28. f4 {[%emt 0:08:57]} Nc7 {[%emt 0:03:45]} 29. e4 {[%emt 0:01:40]} Nxd5 {[%emt 0:03:15]} 30. exd5 {[%emt 0:00:54]} Qd7 {[%emt 0:00:23]} 31. Rb2 {[%emt 0:08:15]} Qf5 {[%emt 0:01:06]} 32. Re2 {[%emt 0:01:54]} h5 {[%emt 0:00:54]} 33. Qd4+ {[%emt 0:03:04]} Qf6 {[%emt 0:00:18]} 34. Qf2 {[%emt 0:00:44]} Qf5 {[%emt 0:00:52]} 35. Rfe1 {[%emt 0:00:32]} Rb7 {[%emt 0:00:21]} 36. Re4 {[%emt 0:00:18]} Qf6 {[%emt 0:02:24]} 37. Kg2 {[%emt 0:05:17]} Rh8 38. R1e3 {[%emt 0:02:28]} Re8 {[%emt 0:05:51]} 39. Qe2 {[%emt 0:00:24]} Rc7 {[%emt 0:04:30]} 40. Rd3 {[%emt 0:00:00]} Rb7 {[%emt 0:00:00]} 41. Rd1 {[%emt 0:09:01]} Rh8 {[%emt 0:03:17]} 42. Rf1 {[%emt 0:01:12]} Rc7 {[%emt 0:04:08]} 43. Rf2 {[%emt 0:05:01]} Rb7 {[%emt 0:00:20]} 44. Re3 {[%emt 0:00:27]} Kf8 {[%emt 0:00:52]} 45. f5 {[%emt 0:03:43]} g5 {[%emt 0:01:39]} 46. Re6 {[%emt 0:01:44]} Qd4 {[%emt 0:01:15]} 47. Re4 {[%emt 0:12:28]} Qf6 {[%emt 0:01:02]} 48. h4 {[%emt 0:00:33]} gxh4 {[%emt 0:12:48]} 49. Rxh4 {[%emt 0:00:09]} Qg5 {[%emt 0:00:07]} 50. Qd2 {[%emt 0:03:23]} f6 {[%emt 0:02:22]} 51. Qxg5 {[%emt 0:02:27]} fxg5 {[%emt 0:00:04]} 52. Re4 {[%emt 0:00:02]} Rh6 {[%emt 0:01:28]} 53. Re6 {[%emt 0:00:51]} Rf6 {[%emt 0:00:11]} 54. Rf1 {[%emt 0:00:44]} Kg7 {[%emt 0:01:34]} 55. Rh1 {[%emt 0:00:09]} h4 {[%emt 0:01:10]} 56. Rf1 {[%emt 0:02:33]} Kf7 {[%emt 0:01:27]} 57. Kh3 {[%emt 0:01:59]} Rb8 {[%emt 0:00:32]} 58. Rfe1 {[%emt 0:00:26]} Re8 {[%emt 0:00:56]} 59. Rf1 {[%emt 0:04:32]} Rh8 {[%emt 0:02:06]} 60. Rfe1 {[%emt 0:00:34]} Re8 {[%emt 0:00:29]} 61. Rf1 {[%emt 0:01:12]} Rh8 {[%emt 0:00:04]} 62. Rfe1 {[%emt 0:00:03]} 1/2-1/2

[Event "23rd Alekhine Master 2019"]
[Site "Voronezh"]
[Date "2019.06.15"]
[Round "4.5"]
[White "Zakhartsov, Vladimir"]
[Black "Shaposhnikov, Evgeny"]
[Result "1/2-1/2"]
[ECO "E12"]
[WhiteElo "2480"]
[BlackElo "2572"]
[Annotator "ChessBase"]
[PlyCount "58"]
[EventDate "2019.06.12"]
[EventType "swiss"]
[EventCountry "RUS"]
[SourceTitle "playchess.com"]
[Source "ChessBase"]
[SourceQuality "1"]
[TimeControl "40/5400+30:1800+30"]

1. d4 {[%emt 0:00:04]} Nf6 {[%emt 0:00:00]} 2. c4 {[%emt 0:00:10]} e6 {[%emt 0:00:00]} 3. Nf3 {[%emt 0:00:05]} b6 {[%emt 0:00:23]} 4. a3 {[%emt 0:00:16]} Bb7 {[%emt 0:00:07]} 5. Nc3 {[%emt 0:00:05]} g6 {[%emt 0:00:28]} 6. Qc2 {[%emt 0:03:47]} Bg7 {[%emt 0:01:55]} 7. e4 {[%emt 0:01:09]} d6 {[%emt 0:01:09]} 8. Be2 {[%emt 0:04:33]} O-O {[%emt 0:03:05]} 9. O-O {[%emt 0:00:26]} Nbd7 {[%emt 0:01:34]} 10. h3 {[%emt 0:04:57]} c5 {[%emt 0:03:37]} 11. d5 {[%emt 0:04:43]} exd5 {[%emt 0:03:36]} 12. exd5 {[%emt 0:01:22]} a6 {[%emt 0:02:31]} 13. Bf4 {[%emt 0:03:02]} Qc7 {[%emt 0:00:50]} 14. Rad1 {[%emt 0:01:20]} Rfe8 {[%emt 0:01:34]} 15. Rfe1 {[%emt 0:00:47]} Re7 {[%emt 0:02:08]} 16. Bf1 {[%emt 0:03:49]} Rae8 {[%emt 0:00:29]} 17. Rxe7 {[%emt 0:01:52]} Rxe7 {[%emt 0:06:43]} 18. Qd2 {[%emt 0:04:24]} Ne4 {[%emt 0:04:29]} 19. Nxe4 {[%emt 0:01:30]} Rxe4 {[%emt 0:00:02]} 20. Re1 {[%emt 0:05:03]} Rxe1 {[%emt 0:06:34]} 21. Qxe1 {[%emt 0:00:52]} Nf6 {[%emt 0:09:22]} 22. b4 {[%emt 0:03:43]} Kf8 {[%emt 0:07:41]} 23. bxc5 {[%emt 0:02:04]} bxc5 {[%emt 0:03:11]} 24. Qb1 {[%emt 0:01:00]} Bc8 {[%emt 0:01:02]} 25. Bd3 {[%emt 0:01:53]} Nd7 {[%emt 0:04:48]} 26. Ng5 {[%emt 0:05:20]} Kg8 {[%emt 0:02:44]} 27. Nf3 {[%emt 0:00:22]} Kf8 {[%emt 0:01:11]} 28. Ng5 {[%emt 0:00:10]} Kg8 {[%emt 0:00:06]} 29. Nf3 {[%emt 0:00:05]} Kf8 {[%emt 0:00:09]} 1/2-1/2

[Event "23rd Alekhine Master 2019"]
[Site "Voronezh"]
[Date "2019.06.15"]
[Round "4.6"]
[White "Goganov, Aleksey"]
[Black "Rios, Cristhian Camilo"]
[Result "0-1"]
[ECO "A06"]
[WhiteElo "2559"]
[BlackElo "2513"]
[Annotator "ChessBase"]
[PlyCount "62"]
[EventDate "2019.06.12"]
[EventType "swiss"]
[EventCountry "RUS"]
[SourceTitle "playchess.com"]
[Source "ChessBase"]
[SourceQuality "1"]
[TimeControl "40/5400+30:1800+30"]

1. Nf3 {[%emt 0:00:00]} d5 {[%emt 0:00:00]} 2. e3 {[%emt 0:00:00]} Nf6 {[%emt 0:01:10]} 3. c4 {[%emt 0:00:00]} e6 {[%emt 0:01:19]} 4. Nc3 {[%emt 0:00:16]} Be7 {[%emt 0:02:52]} 5. b3 {[%emt 0:00:18]} O-O {[%emt 0:00:25]} 6. Bb2 {[%emt 0:00:07]} b6 {[%emt 0:01:00]} 7. cxd5 {[%emt 0:04:10]} exd5 {[%emt 0:01:48]} 8. d4 {[%emt 0:01:29]} Bb7 {[%emt 0:09:21]} 9. Bd3 {[%emt 0:02:27]} Nbd7 {[%emt 0:00:29]} 10. O-O {[%emt 0:00:17]} Ne4 {[%emt 0:03:44]} 11. Qc2 {[%emt 0:03:57]} Ndf6 {[%emt 0:01:38]} 12. Ne5 {[%emt 0:08:37]} Nxc3 {[%emt 0:01:25]} 13. Bxc3 {[%emt 0:12:31]} c5 {[%emt 0:06:57]} 14. Rfd1 {[%emt 0:05:01]} Qc7 {[%emt 0:15:30]} 15. Bb2 {[%emt 0:09:16]} Bd6 {[%emt 0:05:28]} 16. Nf3 {[%emt 0:01:08]} Ne4 {[%emt 0:00:38]} 17. g3 {[%emt 0:13:23]} Rfe8 {[%emt 0:03:45]} 18. Rac1 {[%emt 0:04:15]} Rac8 {[%emt 0:06:05]} 19. dxc5 {[%emt 0:00:38]} bxc5 {[%emt 0:00:48]} 20. Bf1 {[%emt 0:00:42]} d4 {[%emt 0:03:20]} 21. exd4 {[%emt 0:02:24]} Nxg3 {[%emt 0:00:14]} 22. hxg3 {[%emt 0:07:14]} Bxf3 {[%emt 0:00:22]} 23. Rd3 {[%emt 0:03:29]} Be4 {[%emt 0:01:56]} 24. dxc5 {[%emt 0:00:26]} Bxd3 {[%emt 0:01:12]} 25. Qxd3 {[%emt 0:01:58]} Bxc5 {[%emt 0:09:29]} 26. Bh3 {[%emt 0:03:36]} Red8 {[%emt 0:02:04]} 27. Qc3 {[%emt 0:07:53]} Bxf2+ {[%emt 0:02:11]} 28. Kxf2 {[%emt 0:00:06]} Qb6+ {[%emt 0:00:07]} 29. Qe3 {[%emt 0:00:08]} Rd2+ {[%emt 0:00:14]} 30. Kf3 {[%emt 0:00:05]} Qb7+ {[%emt 0:01:09]} 31. Kg4 {[%emt 0:04:36]} Rxb2 0-1